fUST/lending_fUST_20250921
["ID","MTS","AMOUNT","RATE_DAILY","PERIOD"]
[386556796,1758390637648,-1031.48623202,0.00020608,10]
[386556797,1758390637658,-1245.96,0.00020608,10]
[386556798,1758390637667,-1794.18,0.0002061,10]
[386556799,1758390637677,-296.0,0.00020611,2]
[386556800,1758390637686,-300.0,0.00020611,2]
[386556801,1758390637696,-300.0,0.00020611,2]
[386556802,1758390637705,-1200.0,0.00020611,2]
[386556803,1758390637715,-204.61187107,0.00020611,2]
[386556804,1758390637725,-388.76652278,0.00020611,2]
[386556805,1758390637735,-500.0,0.00020611,2]
[386556806,1758390637744,-500.0,0.00020611,2]
[386556807,1758390637754,-500.0,0.00020611,2]
[386556808,1758390637763,-500.0,0.00020611,2]
[386556809,1758390637772,-500.0,0.00020611,2]
[386556810,1758390637783,-500.0,0.00020611,2]
[386556811,1758390637793,-500.0,0.00020611,2]
[386556812,1758390637803,-398.14674357,0.00020611,2]
[386556813,1758390637812,-500.0,0.00020611,2]
[386556814,1758390637822,-500.0,0.00020611,2]
[386556815,1758390637831,-500.0,0.00020611,2]
[386556816,1758390637841,-500.0,0.00020611,2]
[386556817,1758390637850,-316.57247663,0.00020611,2]
[386556818,1758390637860,-500.0,0.00020611,2]
[386556819,1758390637869,-500.0,0.00020611,2]
[386556820,1758390637880,-500.0,0.00020611,2]
[386556821,1758390637889,-500.0,0.00020611,2]
[386556822,1758390637898,-500.0,0.00020611,2]
[386556823,1758390637907,-500.0,0.00020611,2]
[386556824,1758390637917,-500.0,0.00020611,2]
[386556825,1758390637926,-500.0,0.00020611,2]
[386556826,1758390637935,-500.0,0.00020611,2]
[386556827,1758390637944,-382.86729435,0.00020611,2]
[386556828,1758390637953,-500.0,0.00020611,2]
[386556829,1758390637963,-500.0,0.00020611,2]
[386556830,1758390637972,-500.0,0.00020611,2]
[386556831,1758390637981,-500.0,0.00020611,2]
[386556832,1758390637990,-500.0,0.00020611,2]
[386556833,1758390638000,-500.0,0.00020611,2]
[386556834,1758390638009,-500.0,0.00020611,2]
[386556835,1758390638019,-500.0,0.00020611,2]
[386556836,1758390638028,-500.0,0.00020611,2]
[386556837,1758390638037,-500.0,0.00020611,2]
[386556838,1758390638047,-500.0,0.00020611,2]
[386556839,1758390638056,-300.2616193,0.00020611,2]
[386556840,1758390638065,-500.0,0.00020611,2]
[386556841,1758390638075,-500.0,0.00020611,2]
[386556842,1758390638084,-500.0,0.00020611,2]
[386556843,1758390638093,-500.0,0.00020611,2]
[386556844,1758390638102,-500.0,0.00020611,2]
[386556845,1758390638111,-500.0,0.00020611,2]
[386556846,1758390638120,-500.0,0.00020611,2]
[386556847,1758390638130,-500.0,0.00020611,2]
[386556848,1758390638139,-500.0,0.00020611,2]
[386556849,1758390638148,-500.0,0.00020611,2]
[386556850,1758390638157,-500.0,0.00020611,2]
[386556851,1758390638167,-500.0,0.00020611,2]
[386556852,1758390638176,-500.0,0.00020611,2]
[386556853,1758390638186,-500.0,0.00020611,2]
[386556854,1758390638195,-276.30390053,0.00020611,2]
[386556855,1758390638204,-500.0,0.00020611,2]
[386556856,1758390638214,-2153.01,0.00020612,10]
[386556857,1758390638223,-412.73424557,0.00020612,2]
[386556858,1758390638233,-20419.95182238,0.00020612,2]
[386556859,1758390638246,-22441.00035161,0.00020612,2]
[386556860,1758390638255,-39.71,0.00020613,2]
[386556861,1758390638264,-480.0,0.00020613,2]
[386556862,1758390638274,-453.69838388,0.00020613,2]
[386556863,1758390638284,-71.42532921,0.00020613,2]
[386556864,1758390638295,-408.57467079,0.00020613,2]
[386556865,1758390638304,-1103.12,0.00020613,2]
[386556866,1758390638314,-388.80226943,0.00020613,2]
[386556867,1758390638323,-480.0,0.00020613,2]
[386556868,1758390638332,-480.0,0.00020613,2]
[386556869,1758390638342,-480.0,0.00020613,2]
[386556870,1758390638351,-480.0,0.00020613,2]
[386556871,1758390638360,-38.64241733,0.00020613,2]
[386556882,1758390642760,-350.0003136,0.00020608,10]
[386556886,1758390643361,154.878561,0.00020064,4]
[386556933,1758390645686,-688.2996864,0.00020608,10]
[386556934,1758390645696,-1874.32758267,0.00020613,2]
[386556935,1758390645705,-480.0,0.00020613,2]
[386556936,1758390645714,-215.3706065,0.00020613,2]
[386556937,1758390645724,-185.83979657,0.00020617,2]
[386556941,1758390645791,-294.16020343,0.00020617,2]
[386556943,1758390645801,-489.26699008,0.00020617,2]
[386556945,1758390645811,-480.0,0.00020617,2]
[386556946,1758390645821,-161.88339452,0.00020617,2]
[386556947,1758390645830,-480.0,0.00020617,2]
[386556948,1758390645840,-90.30107197,0.00020617,2]
[386556949,1758390645853,-392.9654921,0.00020617,2]
[386556950,1758390645864,-465.19225493,0.00020617,2]
[386556951,1758390645873,-480.0,0.00020617,2]
[386556952,1758390645884,-522.8,0.00020617,2]
[386556953,1758390645894,-484.70646525,0.00020617,2]
[386556955,1758390645903,-470.38253359,0.00020617,2]
[386556956,1758390645913,-1489.16,0.00020617,2]
[386556958,1758390645922,-480.0,0.00020617,2]
[386556959,1758390645931,-480.0,0.00020617,2]
[386556960,1758390645940,-480.0,0.00020617,2]
[386556961,1758390645950,-320.0,0.00020618,2]
[386556962,1758390645959,-480.0,0.00020618,2]
[386556963,1758390645968,-480.0,0.00020618,2]
[386556964,1758390645978,-480.0,0.00020618,2]
[386556965,1758390645988,-514.89,0.00020618,2]
[386556966,1758390645997,-480.0,0.00020618,2]
[386556967,1758390646007,-480.0,0.00020618,2]
[386556968,1758390646016,-261.09492892,0.00020618,2]
[386556969,1758390656604,272.110006,0.00020518,2]
[386556970,1758390711524,150.0,0.00019225,2]
[386556971,1758390711857,246.85,0.0002014,2]
[386556972,1758390720536,6958.02582653,0.00020522,2]
[386556973,1758390720559,10000.01,0.00020522,2]
[386556974,1758390720582,10000.01,0.00020522,2]
[386556975,1758390720608,10000.01,0.00020522,2]
[386556976,1758390720629,10000.01,0.00020522,2]
[386556977,1758390720653,10000.01,0.00020522,2]
[386556978,1758390720676,10000.01,0.00020522,2]
[386556979,1758390720700,10000.01,0.00020522,2]
[386556980,1758390720723,10000.01,0.00020522,2]
[386556981,1758390720745,10000.01,0.00020522,2]
[386556982,1758390720779,9752.99892156,0.00020522,2]
[386556983,1758390720802,949.74950588,0.00020522,2]
[386556984,1758390720826,919.27625949,0.00020522,2]
[386556985,1758390720858,61263.33899483,0.00020522,2]
[386556986,1758390743591,3826.382303,0.000199,2]
[386556987,1758390767514,158.0,8e-07,2]
[386556988,1758390768566,158.0,8e-07,2]
[386556989,1758390769598,158.0,8e-07,2]
[386556990,1758390770674,158.0,8e-07,2]
[386556991,1758390771602,5000.0,0.00019178,2]
[386556992,1758390771715,158.0,8e-07,2]
[386556993,1758390771741,383.627697,0.00019178,2]
[386556994,1758390771762,2270.71730205,0.00019178,2]
[386556995,1758390772766,158.0,8e-07,2]
[386556996,1758390796736,207.76,0.00019227,2]
[386556997,1758390797290,415.52,0.00020142,2]
[386556998,1758390882083,199.83,0.00019218,2]
[386556999,1758390882590,399.66,0.00020133,2]
[386557000,1758390882805,6348.52269795,0.0002052,2]
[386557001,1758390882828,10000.01,0.0002052,2]
[386557002,1758390882851,7502.42555709,0.0002052,2]
[386557003,1758390894421,500.0,0.000201,2]
[386557004,1758390911640,167.72585857,0.00020508,2]
[386557005,1758390938458,1829.85858434,0.000199,2]
[386557006,1758390938482,2239.34419467,0.000199,2]
[386557007,1758390954310,5000.0,0.00019261,2]
[386557008,1758390954452,2760.66580533,0.00019178,2]
[386557009,1758390954474,2239.33419467,0.00019178,2]
[386557010,1758390954597,4345.66192576,0.00019178,2]
[386557011,1758390967028,202.27,0.00019248,2]
[386557012,1758390967448,404.54,0.00020165,2]
[386557013,1758391042692,2808.20387957,0.00019611,2]
[386557014,1758391042717,3330.22876793,0.00019611,2]
[386557015,1758391044930,6669.78123207,0.00020517,2]
[386557016,1758391044953,6330.24184312,0.00020517,2]
[386557017,1758391049339,800.0,0.00020409,2]
[386557018,1758391049542,800.0,0.00020453,2]
[386557019,1758391049661,194.55,0.00019227,2]
[386557020,1758391050076,389.09,0.00020143,2]
[386557021,1758391052021,760.2831069,0.00019611,2]
[386557022,1758391086886,368.0,0.00020009,2]
[386557023,1758391092908,357.84504998,0.00019704,2]
[386557024,1758391092932,10.15495002,0.00019704,2]
[386557025,1758391096417,508.638747,0.00019608,2]
[386557026,1758391099661,368.0,0.00020226,2]
[386557027,1758391106136,368.0,0.00019887,2]
[386557028,1758391109828,368.0,0.00019889,2]
[386557029,1758391112671,262.586207,0.00019608,2]
[386557030,1758391128104,4080.4123346,0.000199,2]
[386557031,1758391136992,187.12,0.00019227,2]
[386557032,1758391137444,374.24,0.00020143,2]
[386557033,1758391137480,2462.4620679,0.00019607,2]
[386557034,1758391196194,-457.75661766,0.00020596,2]
[386557035,1758391196223,-416.13951103,0.000206,2]
[386557036,1758391196251,-248.81423401,0.000206,2]
[386557037,1758391196280,-1200.0,0.00020607,2]
[386557038,1758391196309,-300.0,0.00020607,2]
[386557039,1758391196337,-594.45,0.00020607,3]
[386557040,1758391196366,-1200.0,0.00020608,2]
[386557041,1758391196394,-442.18772699,0.00020608,2]
[386557042,1758391196422,-0.56153683,0.00020608,2]
[386557043,1758391196726,-280.19074696,0.00020608,2]
[386557044,1758391196756,-500.0,0.00020608,2]
[386557045,1758391196785,-361.09266354,0.00020608,2]
[386557046,1758391196815,-500.0,0.00020608,2]
[386557047,1758391196843,-500.0,0.00020608,2]
[386557048,1758391196870,-243.29990761,0.00020608,2]
[386557049,1758391196900,-178.8189706,0.00020608,2]
[386557050,1758391196936,-500.0,0.00020608,2]
[386557051,1758391196965,-500.0,0.00020608,2]
[386557052,1758391196993,-275.3152371,0.00020608,2]
[386557053,1758391197024,-500.0,0.00020608,2]
[386557054,1758391197054,-500.0,0.00020608,2]
[386557055,1758391206340,-300.0,0.00020607,2]
[386557056,1758391206371,-300.0,0.00020607,2]
[386557057,1758391206401,-300.0,0.00020607,2]
[386557058,1758391206431,-500.0,0.00020608,2]
[386557059,1758391206459,-500.0,0.00020608,2]
[386557060,1758391206489,-500.0,0.00020608,2]
[386557061,1758391206520,-500.0,0.00020608,2]
[386557062,1758391206554,-500.0,0.00020608,2]
[386557063,1758391206583,-500.0,0.00020608,2]
[386557064,1758391206614,-500.0,0.00020608,2]
[386557065,1758391206643,-500.0,0.00020608,2]
[386557066,1758391206840,-500.0,0.00020608,2]
[386557067,1758391206872,-500.0,0.00020608,2]
[386557068,1758391206905,-500.0,0.00020608,2]
[386557069,1758391206935,-578.5107279,0.00020608,2]
[386557070,1758391206965,-500.0,0.00020608,2]
[386557071,1758391207006,-500.0,0.00020608,2]
[386557072,1758391207038,-500.0,0.00020608,2]
[386557073,1758391207069,-500.0,0.00020608,2]
[386557074,1758391207100,-500.0,0.00020608,2]
[386557075,1758391207133,-382.24104975,0.00020608,2]
[386557076,1758391207373,-78.5064447,0.00020608,2]
[386557077,1758391207407,-500.0,0.00020608,2]
[386557078,1758391207440,-500.0,0.00020608,2]
[386557079,1758391207473,-500.0,0.00020608,2]
[386557080,1758391207503,-500.0,0.00020608,2]
[386557081,1758391207533,-500.0,0.00020608,2]
[386557082,1758391207674,-500.0,0.00020608,2]
[386557083,1758391207707,-500.0,0.00020608,2]
[386557084,1758391207738,-500.0,0.00020608,2]
[386557085,1758391207769,-500.0,0.00020608,2]
[386557086,1758391207803,-342.9971106,0.00020608,2]
[386557087,1758391207899,-157.0028894,0.00020608,2]
[386557088,1758391207930,-500.0,0.00020608,2]
[386557089,1758391207961,-500.0,0.00020608,2]
[386557090,1758391207992,-500.0,0.00020608,2]
[386557091,1758391208022,-500.0,0.00020608,2]
[386557092,1758391208053,-500.0,0.00020608,2]
[386557093,1758391208083,-500.0,0.00020608,2]
[386557094,1758391208114,-500.0,0.00020608,2]
[386557095,1758391208146,-500.0,0.00020608,2]
[386557096,1758391208178,-500.0,0.00020608,2]
[386557097,1758391208210,-186.0042212,0.00020608,2]
[386557098,1758391208350,-313.9957788,0.00020608,2]
[386557099,1758391208382,-500.0,0.00020608,2]
[386557100,1758391208413,-500.0,0.00020608,2]
[386557101,1758391208444,-230.61073597,0.00020608,2]
[386557102,1758391208475,-500.0,0.00020608,2]
[386557103,1758391208508,-500.0,0.00020608,2]
[386557104,1758391208541,-500.0,0.00020608,2]
[386557105,1758391208574,-500.0,0.00020608,2]
[386557106,1758391208605,-500.0,0.00020608,2]
[386557107,1758391208637,-500.0,0.00020608,2]
[386557108,1758391208669,-410.79697046,0.00020608,2]
[386557109,1758391208880,-89.20302954,0.00020608,2]
[386557110,1758391208914,-500.0,0.00020608,2]
[386557111,1758391208945,-500.0,0.00020608,2]
[386557112,1758391208978,-500.0,0.00020608,2]
[386557113,1758391209010,-500.0,0.00020608,2]
[386557114,1758391209042,-500.0,0.00020608,2]
[386557115,1758391209074,-500.0,0.00020608,2]
[386557116,1758391209105,-500.0,0.00020608,2]
[386557117,1758391209138,-500.0,0.00020608,2]
[386557118,1758391209169,-500.0,0.00020608,2]
[386557119,1758391209200,-321.60394092,0.00020608,2]
[386557120,1758391213609,370000.0,0.00020517,2]
[386557121,1758391216233,-167.44808106,0.00020606,2]
[386557122,1758391216262,-865.25,0.00020607,10]
[386557123,1758391216291,-1200.0,0.00020607,2]
[386557124,1758391216324,-178.39605908,0.00020608,2]
[386557125,1758391216357,-500.0,0.00020608,2]
[386557126,1758391216387,-499.99999999,0.00020608,2]
[386557127,1758391216420,-500.0,0.00020608,2]
[386557128,1758391216451,-500.0,0.00020608,2]
[386557129,1758391216483,-500.0,0.00020608,2]
[386557130,1758391216696,-520.0,0.00020607,3]
[386557131,1758391216728,-500.0,0.00020608,2]
[386557132,1758391216761,-500.0,0.00020608,2]
[386557133,1758391216794,-500.0,0.00020608,2]
[386557134,1758391216830,-500.0,0.00020608,2]
[386557135,1758391216864,-500.0,0.00020608,2]
[386557136,1758391216897,-500.0,0.00020608,2]
[386557137,1758391216931,-500.0,0.00020608,2]
[386557138,1758391216962,-500.0,0.00020608,2]
[386557139,1758391216994,-460.01,0.00020608,2]
[386557140,1758391217220,-39.99,0.00020608,2]
[386557141,1758391217335,-500.0,0.00020608,2]
[386557142,1758391217397,-500.0,0.00020608,2]
[386557143,1758391217430,-500.0,0.00020608,2]
[386557144,1758391217462,-500.0,0.00020608,2]
[386557145,1758391217493,-500.0,0.00020608,2]
[386557146,1758391217526,-500.0,0.00020608,2]
[386557147,1758391217557,-394.02427866,0.00020608,2]
[386557148,1758391217589,-500.0,0.00020608,2]
[386557149,1758391217620,-500.0,0.00020608,2]
[386557150,1758391217652,-500.0,0.00020608,2]
[386557151,1758391217859,-500.0,0.00020608,2]
[386557152,1758391217890,-373.74,0.00020608,3]
[386557153,1758391217917,-186.87,0.00020608,3]
[386557154,1758391217945,-396.28,0.00020608,3]
[386557155,1758391217974,-198.14,0.00020608,3]
[386557156,1758391218003,-747.48,0.00020609,3]
[386557157,1758391218032,-500.0,0.00020609,2]
[386557158,1758391218062,-480.0,0.0002061,2]
[386557159,1758391218091,-480.0,0.0002061,2]
[386557160,1758391219561,180.6,0.00019405,2]
[386557161,1758391219973,361.2,0.00020329,2]
[386557162,1758391226251,-480.0,0.00020607,2]
[386557163,1758391226281,-721.04,0.00020608,10]
[386557164,1758391226314,-2769.28,0.0002061,2]
[386557165,1758391226344,-773.9,0.0002061,2]
[386557166,1758391226524,-511.57,0.0002061,2]
[386557167,1758391226555,-480.0,0.0002061,2]
[386557168,1758391226586,-480.0,0.0002061,2]
[386557169,1758391226618,-511.38,0.0002061,2]
[386557170,1758391226753,-480.0,0.0002061,2]
[386557171,1758391226784,-760.76,0.0002061,2]
[386557172,1758391226813,-480.0,0.0002061,2]
[386557173,1758391226847,-480.0,0.0002061,2]
[386557174,1758391226878,-480.0,0.0002061,2]
[386557175,1758391226908,-192.59,0.0002061,2]
[386557176,1758391235959,520.73919315,0.00020513,2]
[386557177,1758391236286,-287.41,0.0002061,2]
[386557178,1758391236317,-480.0,0.0002061,2]
[386557179,1758391236348,-1282.95,0.0002061,2]
[386557180,1758391236377,-480.0,0.0002061,2]
[386557181,1758391236407,-906.55,0.0002061,2]
[386557182,1758391236437,-480.0,0.0002061,2]
[386557183,1758391236470,-480.0,0.00020611,2]
[386557184,1758391236501,-528.94,0.00020611,2]
[386557186,1758391246327,-480.0,0.00020607,2]
[386557187,1758391246356,-600.86,0.00020608,10]
[386557188,1758391246384,-960.5450815,0.00020609,2]
[386557189,1758391256655,-491.52247574,0.00020607,2]
[386557190,1758391256684,-500.72,0.00020607,10]
[386557191,1758391256712,-480.0,0.00020607,2]
[386557192,1758391256741,-533.45,0.00020607,2]
[386557193,1758391256770,-71.42521152,0.00020609,2]
[386557194,1758391266381,-519.25,0.00020607,2]
[386557195,1758391266411,-417.27,0.00020607,10]
[386557196,1758391266441,-300.0,0.00020608,2]
[386557197,1758391266472,-1681.19537452,0.00020609,2]
[386557198,1758391276380,-1518.5,0.00020607,2]
[386557199,1758391276410,-431.74069649,0.00020607,2]
[386557200,1758391276440,-1934.94935606,0.00020609,2]
[386557201,1758391286424,-480.0,0.00020607,2]
[386557202,1758391286453,-2229.6298949,0.00020609,2]
[386557203,1758391286481,-480.0,0.00020609,2]
[386557204,1758391286510,-480.0,0.00020609,2]
[386557205,1758391286539,-480.0,0.0002061,2]
[386557206,1758391286569,-561.87,0.0002061,2]
[386557207,1758391286598,-90.03009864,0.0002061,2]
[386557208,1758391286756,-396.95001292,0.0002061,2]
[386557209,1758391296438,-347.72,0.00020607,10]
[386557210,1758391296468,-480.0,0.00020607,2]
[386557211,1758391297484,1122.1387018,0.00019613,2]
[386557212,1758391302754,173.71,0.00019317,2]
[386557213,1758391303237,347.41,0.00020237,2]
[386557214,1758391305328,154.878561,0.00020064,4]
[386557215,1758391306141,168.0,0.00020077,2]
[386557216,1758391306492,-289.77,0.00020607,10]
[386557217,1758391306523,-1442.72,0.0002061,2]
[386557218,1758391308847,4077.33998727,0.000199,2]
[386557219,1758391311966,168.0,0.00020487,2]
[386557220,1758391316464,-241.47,0.00020607,10]
[386557221,1758391316495,-480.0,0.0002061,2]
[386557222,1758391326506,-300.0,0.0002061,2]
[386557223,1758391329875,-480.0,0.00020607,2]
[386557224,1758391341564,-201.23,0.00020607,10]
[386557225,1758391341593,-454.6320539,0.00020609,2]
[386557226,1758391341622,-480.0,0.0002061,2]
[386557227,1758391341650,-1200.0,0.0002061,2]
[386557228,1758391341682,-480.0,0.0002061,2]
[386557229,1758391347391,212.40021952,0.0002,2]
[386557230,1758391352354,-480.0,0.00020607,2]
[386557231,1758391352383,-167.69,0.00020607,10]
[386557232,1758391352413,-192.89126168,0.00020607,2]
[386557233,1758391359285,284.3767397,0.00020513,2]
[386557234,1758391361627,-189.73023821,0.00020607,2]
[386557235,1758391361667,-838.48,0.00020607,10]
[386557236,1758391361707,-480.0,0.0002061,2]
[386557237,1758391365289,800.0,0.00020467,2]
[386557238,1758391371619,-480.0,0.00020607,2]
[386557239,1758391371650,-480.0,0.00020607,2]
[386557240,1758391371680,-1545.28,0.00020607,2]
[386557241,1758391371710,-536.83,0.00020607,2]
[386557242,1758391371740,-480.0,0.00020609,2]
[386557243,1758391371769,-1346.14,0.0002061,2]
[386557244,1758391371891,-263.51,0.0002061,2]
[386557245,1758391376044,9214.53453227,0.00020511,2]
[386557246,1758391381641,-480.0,0.00020607,2]
[386557247,1758391381670,-480.0,0.00020609,2]
[386557248,1758391381840,-2152.13986825,0.00020611,2]
[386557249,1758391381892,-10000.01,0.00020611,2]
[386557250,1758391385629,167.07,0.00019311,2]
[386557251,1758391386054,334.15,0.00020231,2]
[386557252,1758391391810,-480.0,0.00020607,2]
[386557253,1758391391840,-480.0,0.00020607,2]
[386557254,1758391391869,-500.0,0.0002061,2]
[386557255,1758391391896,-250.94563643,0.0002061,2]
[386557256,1758391391927,-308.36835968,0.0002061,2]
[386557257,1758391391957,-626.74972161,0.0002061,2]
[386557258,1758391391989,-500.0,0.0002061,2]
[386557259,1758391392023,-262.46350146,0.0002061,2]
[386557260,1758391392055,-500.0,0.0002061,2]
[386557261,1758391392087,-500.0,0.0002061,2]
[386557262,1758391392117,-500.0,0.0002061,2]
[386557263,1758391392215,-500.0,0.0002061,2]
[386557264,1758391392246,-500.0,0.0002061,2]
[386557265,1758391392276,-300.0,0.0002061,2]
[386557266,1758391392305,-480.0,0.0002061,2]
[386557267,1758391392334,-480.0,0.0002061,2]
[386557268,1758391392361,-204.73419837,0.00020611,2]
[386557269,1758391392669,-5070.54160326,0.00020611,2]
[386557270,1758391392678,-160.0,0.00020611,2]
[386557271,1758391392688,-44.73419837,0.00020611,2]
[386557272,1758391421845,-1116.7,0.00020607,2]
[386557273,1758391421875,-1416.81,0.00020607,2]
[386557274,1758391421904,-480.0,0.0002061,2]
[386557275,1758391421938,-1531.49,0.0002061,2]
[386557276,1758391422028,-910.01,0.0002061,2]
[386557277,1758391431781,-10000.01,0.0002061,2]
[386557278,1758391433817,2280.0522408,0.00019616,2]
[386557279,1758391441829,-480.0,0.00020607,2]
[386557280,1758391441858,-377.2846643,0.0002061,2]
[386557281,1758391441895,-8285.4406714,0.0002061,2]
[386557282,1758391466770,160.69,0.00019459,2]
[386557283,1758391467715,321.39,0.00020385,2]
[386557284,1758391491041,4060.37686907,0.000199,2]
[386557285,1758391500239,189.58449314,0.00020513,2]
[386557286,1758391550425,154.56,0.00019216,2]
[386557287,1758391550798,309.12,0.00020131,2]
[386557288,1758391590939,1000.0,0.0001961,2]
[386557289,1758391630718,150.0,0.00019216,2]
[386557290,1758391631158,297.31,0.00020131,2]
[386557291,1758391673073,3356.97863779,0.000199,2]
[386557292,1758391673096,675.10572933,0.000199,2]
[386557293,1758391714810,150.0,0.00019213,2]
[386557294,1758391715266,285.93,0.00020128,2]
[386557295,1758391741233,601.79298916,0.00020509,2]
[386557297,1758391791765,-565.95,0.00020603,10]
[386557298,1758391791797,-300.0,0.00020605,2]
[386557299,1758391791829,-160.0,0.00020606,2]
[386557300,1758391791859,-173.0,0.00020606,2]
[386557301,1758391791891,-2.1,0.00020606,2]
[386557302,1758391791907,-565.95,0.00020606,2]
[386557303,1758391791918,-300.0,0.00020606,2]
[386557304,1758391791929,-160.0,0.00020606,2]
[386557305,1758391791940,-171.95,0.00020606,2]
[386557306,1758391792058,-1.05,0.00020606,2]
[386557307,1758391792070,-1198.95,0.00020606,2]
[386557308,1758391792079,-1.05,0.00020606,2]
[386557309,1758391795033,150.0,0.00019223,2]
[386557310,1758391795438,274.83,0.00020139,2]
[386557311,1758391821039,545.78370588,0.00018494,2]
[386557312,1758391821061,945.504,0.00018494,2]
[386557313,1758391821085,108.71229412,0.00018494,2]
[386557314,1758391822421,-471.63,0.00020603,10]
[386557315,1758391822567,-393.02,0.00020603,10]
[386557316,1758391822598,-327.52,0.00020603,10]
[386557317,1758391825362,1600.0,0.0001959,2]
[386557331,1758391832023,-272.93,0.00020603,10]
[386557333,1758391832032,-160.0,0.00020606,2]
[386557335,1758391832042,-300.0,0.00020606,2]
[386557336,1758391832051,-1200.0,0.00020606,2]
[386557338,1758391832061,-362.49594461,0.00020606,2]
[386557340,1758391832071,-309.53140889,0.00020606,2]
[386557342,1758391832080,-221.18643337,0.00020606,2]
[386557344,1758391832090,-160.0,0.00020607,2]
[386557346,1758391832099,-422.59115298,0.00020607,2]
[386557348,1758391832108,-220.8306612,0.00020607,2]
[386557350,1758391832118,-172.73439892,0.00020607,2]
[386557352,1758391832129,-307.26560108,0.00020607,2]
[386557354,1758391832138,-121.87439892,0.00020607,2]
[386557357,1758391832158,-403.31220307,0.00020607,2]
[386557359,1758391832167,-480.0,0.00020607,2]
[386557361,1758391832178,-480.0,0.00020607,2]
[386557363,1758391832188,-486.06319791,0.00020607,2]
[386557365,1758391832197,-480.0,0.00020607,2]
[386557367,1758391832207,-480.0,0.00020607,2]
[386557369,1758391832218,-480.0,0.00020607,2]
[386557371,1758391832227,-483.92151366,0.00020607,2]
[386557373,1758391832236,-480.0,0.00020607,2]
[386557375,1758391832246,-480.0,0.00020607,2]
[386557377,1758391832255,-480.0,0.00020607,2]
[386557379,1758391832264,-909.97,0.00020607,2]
[386557381,1758391832274,-436.35019794,0.00020607,2]
[386557383,1758391832283,-480.0,0.00020607,2]
[386557385,1758391832293,-485.33090134,0.00020607,2]
[386557387,1758391832302,-480.0,0.00020607,2]
[386557389,1758391832311,-480.0,0.00020607,2]
[386557391,1758391832324,-480.0,0.00020607,2]
[386557393,1758391832334,-480.0,0.00020607,2]
[386557395,1758391832343,-186.05,0.00020607,2]
[386557397,1758391832353,-479.62865664,0.00020607,2]
[386557399,1758391832362,-480.0,0.00020607,2]
[386557401,1758391832372,-480.0,0.00020607,2]
[386557403,1758391832382,-480.0,0.00020607,2]
[386557404,1758391832391,-480.0,0.00020607,2]
[386557405,1758391832401,-525.63,0.00020607,2]
[386557406,1758391832410,-487.53045418,0.00020607,2]
[386557407,1758391832419,-480.0,0.00020607,2]
[386557408,1758391832430,-480.0,0.00020607,2]
[386557409,1758391832439,-480.0,0.00020607,2]
[386557410,1758391832448,-480.0,0.00020607,2]
[386557411,1758391832457,-538.46,0.00020607,2]
[386557412,1758391832468,-230.74040021,0.00020607,2]